bitfinex/quotes_ETHUSD_20241006
["timestamp","ask_amount","ask_price","bid_price","bid_amount"]
[1728220843825,10.37265584,2435.1,2433.8,0.7861]
[1728220844024,3.28672,2434.1,2433.8,0.7861]
[1728220844323,3.2869,2433.9,2433.8,0.7861]
[1728220844886,3.2869,2433.9,2433.8,35.7861]
[1728220845099,3.2869,2433.9,2433.8,39.36471]
[1728220845839,3.28677,2434.0,2433.8,39.36471]
[1728220846123,3.28677,2434.0,2433.9,0.7861]
[1728220848859,3.28677,2434.0,2433.9,35.7861]
[1728220849752,3.28623,2434.4,2434.0,0.7861]
[1728220849964,6.28636,2434.3,2434.2,0.7861]
[1728220850264,3.0,2434.3,2434.2,0.7861]
[1728220850422,6.28636,2434.3,2434.2,0.7861]
[1728220850630,6.28636,2434.3,2434.2,35.7861]
[1728220850834,6.28636,2434.3,2434.2,39.36471]
[1728220852036,6.28636,2434.3,2434.2,35.7861]
[1728220852463,6.28636,2434.3,2434.2,35.0]
[1728220853268,6.23636,2434.3,2434.2,35.0]
[1728220855048,6.53996,2434.3,2434.2,35.0]
[1728220855247,7.09575542,2434.3,2434.2,35.0]
[1728220860270,6.53996,2434.3,2434.2,35.0]
[1728220861822,6.23636,2434.3,2434.2,35.0]
[1728220862185,6.23636,2434.3,2434.2,35.049384]
[1728220867990,3.28636,2434.3,2434.2,35.875584]
[1728220868325,3.28636,2434.3,2434.2,39.4631424]
[1728220869087,6.28636,2434.3,2434.2,39.4631424]
[1728220872322,6.28636,2434.3,2434.2,35.875584]
[1728220872535,6.28636,2434.3,2434.2,35.049384]
[1728220875822,6.58996,2434.3,2434.2,35.049384]
[1728220876498,7.01854328,2434.3,2434.2,35.049384]
[1728220880350,7.01854328,2434.3,2434.2,0.049384]
[1728220880868,3.28717,2433.7,2433.6,0.8262]
[1728220881236,3.28717,2433.7,2433.6,0.87667087]
[1728220881436,3.28717,2433.7,2433.6,35.87667087]
[1728220882535,3.0,2433.8,2433.7,0.8209]
[1728220882781,3.0,2434.0,2433.8,0.8209]
[1728220883264,3.0,2434.0,2433.9,0.87082737]
[1728220883560,3.0,2434.0,2433.9,35.87082737]
[1728220884982,3.28645,2434.3,2434.0,0.8209]
[1728220885174,3.28645,2434.3,2434.1,0.87046511]
[1728220885604,3.2865,2434.2,2434.1,0.87046511]
[1728220887371,3.2865,2434.2,2434.1,0.8784865]
[1728220891876,3.28645,2434.3,2434.1,0.8784865]
[1728220892075,3.28645,2434.3,2434.2,0.44655692]
[1728220892288,6.28645,2434.3,2434.2,0.44655692]
[1728220892577,6.28645,2434.3,2434.2,0.50890071]
[1728220893720,6.28645,2434.3,2434.2,0.06234379]
[1728220895176,6.28645,2434.3,2434.2,0.00802139]
[1728220895607,6.28645,2434.3,2434.2,35.00802139]
[1728220895794,6.28645,2434.3,2434.2,35.05740539]
[1728220904102,6.59005,2434.3,2434.2,35.05740539]
[1728220904535,6.59005,2434.3,2434.2,35.00802139]
[1728220904903,6.59005,2434.3,2434.2,35.05740539]
[1728220918368,6.59005,2434.3,2434.2,0.05740539]
[1728220918781,6.59005,2434.3,2434.2,0.00802139]
[1728220918933,6.59005,2434.3,2434.2,35.00802139]
[1728220919264,6.59005,2434.3,2434.2,35.05740539]
[1728220920337,6.28645,2434.3,2434.2,35.05740539]
[1728220921875,6.28645,2434.3,2434.2,0.05740539]
[1728220922251,6.28645,2434.3,2434.2,0.00802139]
[1728220922462,6.28645,2434.3,2434.2,35.00802139]
[1728220922658,6.28645,2434.3,2434.2,35.05740539]
[1728220926943,6.59005,2434.3,2434.2,35.05740539]
[1728220927377,7.01856958,2434.3,2434.2,35.05740539]
[1728220928574,7.574365,2434.3,2434.2,0.05740539]
[1728220928767,10.71028113,2434.3,2434.2,0.049384]
[1728220928965,6.28663,2434.1,2434.0,0.00802139]
[1728220929176,6.28663,2434.1,2434.0,35.00802139]
[1728220929579,54.338434,2434.1,2434.0,35.0536221]
[1728220930048,54.642034,2434.1,2434.0,35.0536221]
[1728220931267,54.642034,2434.1,2434.0,0.0536221]
[1728220931456,54.642034,2434.1,2434.0,0.00802139]
[1728220932246,54.642034,2434.1,2434.0,0.0536221]
[1728220932557,55.19782942,2434.1,2434.0,0.0536221]
[1728220932857,55.19782942,2434.1,2433.5,35.0]
[1728220932858,6.59091,2433.6,2433.5,35.0]
[1728220933044,36.687823,2433.6,2433.5,35.0]
[1728220933244,6.28798,2433.1,2433.0,0.7833]
[1728220933696,6.28798,2433.1,2433.0,35.7833]
[1728220940594,6.28798,2433.1,2433.0,35.83773407]
[1728220944238,3.0,2433.1,2433.0,39.42150748]
[1728220946100,3.28786,2433.2,2433.1,0.786]
[1728220946426,3.28786,2433.2,2433.1,0.84626075]
[1728220946795,3.28786,2433.2,2433.1,35.84626075]
[1728220947133,3.28786,2433.2,2433.1,39.43088683]
[1728220947994,3.28786,2433.2,2433.1,39.43890822]
[1728220948530,3.28786,2433.2,2433.1,35.85428214]
[1728220955266,3.28786,2433.2,2433.1,35.06828214]
[1728220955808,6.28786,2433.2,2433.1,35.06828214]
[1728220960323,6.59146,2433.2,2433.1,35.06828214]
[1728220965812,6.59146,2433.2,2433.1,0.06828214]
[1728220966015,6.59146,2433.2,2433.1,0.00802139]
[1728220966415,6.59146,2433.2,2433.1,35.00802139]
[1728220966919,6.59146,2433.2,2433.1,35.05732564]
[1728220967123,6.28786,2433.2,2433.1,35.05732564]
[1728220985359,6.28786,2433.2,2433.1,35.00802139]
[1728220985876,6.28786,2433.2,2433.1,35.05732564]
[1728220987945,6.28786,2433.2,2433.1,35.88052564]
[1728220995990,6.28786,2433.2,2433.1,35.05732564]
[1728220997991,6.28786,2433.2,2433.1,0.05732564]
[1728220998395,6.28786,2433.2,2433.1,35.05732564]
[1728220998557,6.28786,2433.2,2433.1,35.00802139]
[1728220998894,6.28786,2433.2,2433.1,35.05732564]
[1728221004481,6.28786,2433.2,2433.1,0.05732564]
[1728221004710,6.28786,2433.2,2433.1,0.00802139]
[1728221004940,6.28786,2433.2,2433.1,35.00802139]
[1728221005235,6.28786,2433.2,2433.1,35.05732564]
[1728221009941,6.28786,2433.2,2433.1,0.05732564]
[1728221010138,6.28786,2433.2,2433.1,0.00802139]
[1728221010441,6.28786,2433.2,2433.1,35.00802139]
[1728221010767,6.28786,2433.2,2433.1,35.05732564]
[1728221013470,6.28786,2433.2,2433.1,0.05732564]
[1728221013769,6.28786,2433.2,2433.1,0.00802139]
[1728221013967,6.28786,2433.2,2433.1,35.00802139]
[1728221014348,6.28786,2433.2,2433.1,35.05732564]
[1728221020604,6.28786,2433.2,2433.1,0.05732564]
[1728221020959,6.28786,2433.2,2433.1,0.00802139]
[1728221021259,6.28786,2433.2,2433.1,35.00802139]
[1728221021671,6.28786,2433.2,2433.1,35.05732564]
[1728221024194,6.28786,2433.2,2433.1,0.05732564]
[1728221024555,6.28786,2433.2,2433.1,35.00802139]
[1728221024754,6.28786,2433.2,2433.1,35.05732564]
[1728221027834,6.28786,2433.2,2433.1,0.05732564]
[1728221028195,6.28786,2433.2,2433.1,35.00802139]
[1728221028513,6.28786,2433.2,2433.1,35.05732564]
[1728221049309,6.28786,2433.2,2433.1,35.88782564]
[1728221050375,3.28773,2433.3,2433.1,35.88782564]
[1728221050592,3.28773,2433.3,2433.2,0.8305]
[1728221050914,3.28773,2433.3,2433.2,4.48133924]
[1728221051103,3.28773,2433.3,2433.2,4.56352859]
[1728221051321,3.28754,2433.5,2433.3,0.8305]
[1728221051619,6.57455,2433.7,2433.3,0.88433592]
[1728221051799,3.28725,2433.7,2433.5,0.8305]
[1728221052207,3.28731,2433.6,2433.5,0.8305]
[1728221052374,3.28725,2433.7,2433.5,0.8305]
[1728221052572,3.28725,2433.7,2433.6,0.91267415]
[1728221052775,3.28725,2433.7,2433.6,35.8305]
[1728221053012,3.28725,2433.7,2433.6,39.41355]
[1728221056340,3.28705,2433.8,2433.6,39.41355]
[1728221056524,3.28683,2434.0,2433.7,0.8305]
[1728221056737,3.28683,2434.0,2433.7,0.91267248]
[1728221056942,3.28658,2434.2,2433.9,0.8305]
[1728221057104,3.28658,2434.2,2434.0,0.08216016]
[1728221057305,3.28658,2434.2,2434.1,0.8305]
[1728221058648,3.28658,2434.2,2434.1,35.8305]
[1728221060530,6.28658,2434.2,2434.1,35.8305]
[1728221065465,6.28658,2434.2,2434.1,35.0]
[1728221066462,7.14597542,2434.2,2434.1,35.0]
[1728221068320,6.59018,2434.2,2434.1,35.0]
[1728221069759,6.28704,2433.8,2433.7,0.8305]
[1728221070129,6.28704,2433.8,2433.7,35.8305]
[1728221072863,6.28704,2433.8,2433.7,35.83852139]
[1728221076859,6.28704,2433.8,2433.7,35.00802139]
[1728221078096,6.28704,2433.8,2433.7,35.79362139]
[1728221078375,6.28704,2433.8,2433.7,39.29442353]
[1728221079280,6.28704,2433.8,2433.7,35.79362139]
[1728221087045,6.28704,2433.8,2433.7,35.00802139]
[1728221095058,60.663872,2433.8,2433.7,35.00802139]
[1728221095224,59.597816,2433.8,2433.7,35.00802139]
[1728221095426,54.95146626,2433.8,2433.7,35.00802139]
[1728221095728,48.44751817,2433.8,2433.7,35.00802139]
[1728221096082,45.86607391,2433.8,2433.7,35.00802139]
[1728221096285,48.45046729,2433.8,2433.7,35.00802139]
[1728221096527,46.76095229,2433.8,2433.7,35.00802139]
[1728221096689,36.88978729,2433.8,2433.7,35.00802139]
[1728221097592,36.33978729,2433.8,2433.7,35.00802139]
[1728221097788,9.30017329,2433.8,2433.7,0.00802139]
[1728221098021,6.71577991,2433.8,2433.7,0.00802139]
[1728221098523,6.71577991,2433.8,2433.7,35.00802139]
[1728221101720,3.71577991,2433.8,2433.7,39.31982353]
[1728221101928,3.28704,2433.8,2433.7,39.31982353]
[1728221103281,6.28704,2433.8,2433.7,39.31982353]
[1728221108300,6.28704,2433.8,2433.7,35.81902139]
[1728221112228,6.28704,2433.8,2433.7,35.00802139]
[1728221112426,6.59064,2433.8,2433.7,35.00802139]
[1728221115739,51.51865542,2433.8,2433.7,35.00802139]
[1728221115947,50.49297287,2433.8,2433.7,35.00802139]
[1728221116146,48.92853387,2433.8,2433.7,35.00802139]
[1728221116450,51.51337466,2433.8,2433.7,35.00802139]
[1728221116659,47.03528966,2433.8,2433.7,35.00802139]
[1728221116830,32.48281966,2433.8,2433.7,35.00802139]
[1728221117581,32.17921966,2433.8,2433.7,35.00802139]
[1728221117795,32.17921966,2433.8,2433.7,0.00802139]
[1728221117796,33.03281966,2433.8,2433.7,0.00802139]
[1728221117947,31.091509,2433.8,2433.7,0.00802139]
[1728221118344,34.10715659,2433.8,2433.7,0.00802139]
[1728221118849,34.10628188,2433.8,2433.7,0.00802139]
[1728221119075,31.091509,2433.8,2433.7,0.00802139]
[1728221121056,22.27575649,2433.8,2433.7,0.00802139]
[1728221123666,22.27600411,2433.8,2433.7,0.00802139]
[1728221124563,22.27600411,2433.8,2433.7,35.00802139]
[1728221125089,42.63622611,2433.8,2433.7,35.00802139]
[1728221125593,43.19202153,2433.8,2433.7,35.00802139]
[1728221126004,43.19202153,2433.8,2433.7,0.00802139]
[1728221126462,40.608407,2433.8,2433.7,35.00802139]
[1728221127208,43.19208126,2433.8,2433.7,35.00802139]
[1728221129689,43.19208126,2433.8,2433.7,0.00802139]
[1728221130232,43.19208126,2433.8,2433.7,35.00802139]
[1728221131506,43.2635961,2433.8,2433.7,35.00802139]
[1728221131716,43.41386038,2433.8,2433.7,35.00802139]
[1728221133206,43.41386038,2433.8,2433.7,0.00802139]
[1728221133410,43.41433348,2433.8,2433.7,0.00802139]
[1728221133620,43.41433348,2433.8,2433.7,35.00802139]
[1728221135935,69.43343248,2433.8,2433.7,35.00802139]
[1728221136803,69.43343248,2433.8,2433.7,0.00802139]
[1728221137213,69.43343248,2433.8,2433.7,35.00802139]
[1728221138135,69.43337522,2433.8,2433.7,35.00802139]
[1728221138643,66.84928512,2433.8,2433.7,35.00802139]
[1728221138795,69.43337543,2433.8,2433.7,35.00802139]
[1728221140448,69.43337543,2433.8,2433.7,0.00802139]
[1728221140622,69.98337543,2433.8,2433.7,0.00802139]
[1728221140941,69.98337543,2433.8,2433.7,35.00802139]
[1728221142138,6.28731,2433.6,2433.5,0.00802139]
[1728221142445,6.28771,2433.3,2433.2,0.7976]
[1728221143023,6.28771,2433.3,2433.2,35.7976]
[1728221143222,6.28771,2433.3,2433.2,35.80562139]
[1728221143541,6.28771,2433.3,2433.2,35.85474438]
[1728221146323,6.28771,2433.3,2433.2,39.44021882]
[1728221149319,6.28771,2433.3,2433.2,35.85474438]
[1728221161848,6.57526,2433.4,2433.3,0.8093]
[1728221162087,6.57526,2433.4,2433.3,0.89950399]
[1728221162244,6.57526,2433.4,2433.3,0.87115731]
[1728221163252,9.57526,2433.4,2433.3,0.87115731]
[1728221164895,9.57526,2433.4,2433.3,0.81732139]
[1728221165192,9.57526,2433.4,2433.3,35.81732139]
[1728221165550,9.57526,2433.4,2433.3,35.87713908]
[1728221166293,9.57526,2433.4,2433.3,38.36703222]
[1728221177316,9.57526,2433.4,2433.3,35.87713908]
[1728221185355,6.28759,2433.4,2433.3,35.87803908]
[1728221190861,3.0,2433.4,2433.3,35.87803908]
[1728221191053,3.28739,2433.6,2433.4,0.8102]
[1728221191254,3.28739,2433.6,2433.3,35.06783908]
[1728221191255,3.28739,2433.6,2433.5,4.4060253]
[1728221192271,6.28739,2433.6,2433.5,4.4060253]
[1728221193039,6.28739,2433.6,2433.5,0.00802139]
[1728221194631,6.28739,2433.6,2433.5,35.00802139]
[1728221207381,6.28739,2433.6,2433.5,35.80962139]
[1728221213293,3.0,2433.6,2433.5,35.80962139]
[1728221214719,6.28731,2433.6,2433.5,35.80962139]
[1728221240336,6.28731,2433.6,2433.5,35.00802139]
[1728221244469,6.59091,2433.6,2433.5,35.00802139]
[1728221247287,7.02018799,2433.6,2433.5,35.00802139]
[1728221247974,61.88832141,2433.6,2433.5,0.00802139]
[1728221248152,59.49410038,2433.6,2433.5,0.00802139]
[1728221248340,54.27077938,2433.6,2433.5,0.00802139]
[1728221249119,24.70094238,2433.6,2433.5,0.00802139]
[1728221249613,22.11147341,2433.6,2433.5,0.00802139]
[1728221249951,28.91958141,2433.6,2433.5,0.00802139]
[1728221253392,16.00725799,2433.6,2433.5,0.00802139]
[1728221257950,16.00725799,2433.6,2433.5,35.00802139]
[1728221258768,16.56305341,2433.6,2433.5,35.00802139]
[1728221260907,16.56305341,2433.6,2433.5,0.00802139]
[1728221261396,16.56305341,2433.6,2433.5,35.00802139]
[1728221262687,16.56305341,2433.6,2433.5,0.00802139]
[1728221266210,16.63445304,2433.6,2433.5,0.00802139]
[1728221266611,16.56305341,2433.6,2433.5,0.00802139]
[1728221267307,16.56305341,2433.6,2433.5,35.00802139]
[1728221269611,16.63444735,2433.6,2433.5,35.00802139]
[1728221270510,16.63444735,2433.6,2433.5,0.00802139]
[1728221271013,16.63444735,2433.6,2433.5,35.00802139]
[1728221273980,16.63444735,2433.6,2433.5,0.00802139]
[1728221274502,16.63444735,2433.6,2433.5,35.00802139]
[1728221277630,16.63444735,2433.6,2433.5,0.00802139]
[1728221278121,16.63444735,2433.6,2433.5,35.00802139]
[1728221279617,16.07865193,2433.6,2433.5,35.00802139]
[1728221281233,16.07865193,2433.6,2433.5,0.00802139]
[1728221281810,16.07865193,2433.6,2433.5,35.00802139]
[1728221284829,16.07865193,2433.6,2433.5,0.00802139]
[1728221285209,16.07865193,2433.6,2433.5,35.00802139]
[1728221287541,18.6640031,2433.6,2433.5,35.00802139]
[1728221287956,10.2269331,2433.6,2433.5,35.00802139]
[1728221288247,71.6139381,2433.6,2433.5,35.00802139]
[1728221288415,71.6139381,2433.6,2433.5,0.00802139]
[1728221289116,71.6139381,2433.6,2433.5,35.00802139]
[1728221290609,69.02858693,2433.6,2433.5,35.00802139]
[1728221291856,69.02858693,2433.6,2433.5,0.00802139]
[1728221292433,69.02858693,2433.6,2433.5,35.00802139]
[1728221295468,69.02858693,2433.6,2433.5,0.00802139]
[1728221295963,69.02858693,2433.6,2433.5,35.00802139]
[1728221298858,69.02858693,2433.6,2433.5,0.00802139]
[1728221299466,69.02858693,2433.6,2433.5,35.00802139]
[1728221302381,69.02858693,2433.6,2433.5,0.00802139]
[1728221303080,69.02858693,2433.6,2433.5,35.00802139]
[1728221304183,45.15294493,2433.6,2433.5,35.00802139]
[1728221304687,35.50203593,2433.6,2433.5,35.00802139]
[1728221304988,34.08703593,2433.6,2433.5,35.00802139]
[1728221305948,34.08703593,2433.6,2433.5,0.00802139]
[1728221306352,34.08703593,2433.6,2433.5,35.00802139]
[1728221309557,34.08703593,2433.6,2433.5,0.00802139]
[1728221310179,34.08703593,2433.6,2433.5,35.00802139]
[1728221313052,34.08703593,2433.6,2433.5,0.00802139]
[1728221313595,34.08703593,2433.6,2433.5,35.00802139]
[1728221316556,34.08703593,2433.6,2433.5,0.00802139]
[1728221316974,6.83758,2433.4,2433.3,0.83802139]
[1728221317174,37.765055,2433.4,2433.3,0.83]
[1728221317505,37.765055,2433.4,2433.3,35.83]
[1728221317805,38.40864941,2433.4,2433.3,35.87894175]
[1728221321386,37.00440441,2433.4,2433.3,35.87894175]
[1728221323320,7.48117441,2433.4,2433.3,35.87894175]
[1728221323809,36.60365041,2433.4,2433.3,35.87894175]
[1728221326804,36.60365041,2433.4,2433.3,0.87894175]
[1728221327206,36.60365041,2433.4,2433.3,0.83]
[1728221327522,36.60365041,2433.4,2433.3,35.83]
[1728221327733,36.60365041,2433.4,2433.3,35.87894175]
[1728221330329,36.60365041,2433.4,2433.3,0.87894175]
[1728221330496,36.60365041,2433.4,2433.3,0.83]
[1728221330904,39.19507049,2433.4,2433.3,35.83]
[1728221331212,39.19507049,2433.4,2433.3,35.87894175]
[1728221333104,36.60365041,2433.4,2433.3,35.87894175]
[1728221333524,39.19507049,2433.4,2433.3,35.87894175]
[1728221333923,39.19507049,2433.4,2433.3,0.87894175]
[1728221334098,39.19507049,2433.4,2433.3,0.83]
[1728221334428,39.19507049,2433.4,2433.3,35.83]
[1728221334725,39.19507049,2433.4,2433.3,35.87894175]
[1728221334925,39.19513332,2433.4,2433.3,35.87894175]
[1728221337635,39.19513332,2433.4,2433.3,0.04894175]
[1728221338166,3.28785,2433.2,2433.1,0.8216]
[1728221338428,6.28785,2433.2,2433.1,0.82962139]
[1728221338727,6.28785,2433.2,2433.1,35.82962139]
[1728221338934,6.28785,2433.2,2433.1,35.87892564]
[1728221368878,6.28785,2433.2,2433.1,35.05732564]
[1728221369184,14.30221643,2433.2,2433.1,35.05732564]
[1728221371770,14.30221643,2433.2,2433.1,0.05732564]
[1728221371947,14.30221643,2433.2,2433.1,0.00802139]
[1728221374321,15.15581643,2433.2,2433.1,0.00802139]
[1728221374904,65.12631643,2433.2,2433.1,0.00802139]
[1728221382827,65.12631643,2433.2,2431.7,0.34044802]
[1728221382828,0.3036,2433.1,2431.7,0.34044802]
[1728221383028,3.28958,2432.0,2431.8,0.34044802]
[1728221383334,3.28958,2432.0,2431.9,1.17702851]
[1728221383635,3.28958,2432.0,2431.9,0.83658049]
[1728221385415,3.28958,2432.0,2431.9,0.84460188]
[1728221389837,3.28958,2432.0,2431.9,35.84460188]
[1728221395755,3.28935,2432.1,2431.9,35.84460188]
[1728221395942,3.28947,2432.0,2431.9,35.84460188]
[1728221400316,6.28947,2432.0,2431.9,35.84460188]
[1728221400518,3.0,2432.0,2431.9,35.84460188]
[1728221401052,6.28947,2432.0,2431.9,35.84460188]
[1728221401346,3.0,2432.0,2431.9,35.84460188]
[1728221405063,3.0,2432.4,2432.0,0.7931]
[1728221405388,6.28896,2432.4,2432.3,0.80112139]
[1728221405515,6.28896,2432.4,2432.3,0.00802139]
[1728221408518,6.28896,2432.4,2432.3,35.00802139]
[1728221409123,6.59256,2432.4,2432.3,35.00802139]
[1728221412598,6.59256,2432.4,2432.3,0.00802139]
[1728221413108,6.59256,2432.4,2432.3,35.00802139]
[1728221413399,6.28896,2432.4,2432.3,35.00802139]
[1728221415569,6.28896,2432.4,2432.3,35.05877627]
[1728221429566,6.28896,2432.4,2432.3,35.87477627]
[1728221431231,6.28896,2432.4,2432.3,35.05877627]
[1728221434636,6.28896,2432.4,2432.3,35.05075488]
[1728221443285,6.28896,2432.4,2432.3,35.85105488]
[1728221470997,3.0,2432.5,2432.3,35.85105488]
[1728221471206,6.28883,2432.5,2432.3,35.85105488]
[1728221471402,3.0,2432.5,2432.3,35.85105488]
[1728221471892,6.28881,2432.5,2432.3,35.85105488]
[1728221473794,0.64378652,2432.7,2432.3,38.63586037]
[1728221474112,3.28825,2432.9,2432.4,0.8212]
[1728221474314,3.28846,2432.8,2432.5,0.8212]
[1728221474507,3.28846,2432.8,2432.5,0.87153429]
[1728221474999,3.2882,2433.0,2432.5,0.87153429]
[1728221475156,6.57641,2433.0,2432.5,0.87153429]
[1728221475356,3.0,2432.9,2432.5,0.87153429]
[1728221475656,6.28827,2432.9,2432.5,0.87153429]
[1728221476702,3.2882,2433.0,2432.5,0.87153429]
[1728221477058,3.2882,2433.0,2432.7,0.7832]
[1728221477395,3.2882,2433.0,2432.8,0.0497903]
[1728221477593,3.2882,2433.0,2432.9,35.0]
[1728221477761,3.2882,2433.0,2432.9,35.049609]
[1728221478192,6.2882,2433.0,2432.9,35.049609]
[1728221479992,3.28793,2433.2,2432.9,35.049609]
[1728221479993,6.28801,2433.1,2432.9,35.049609]
[1728221483599,3.0,2433.1,2433.0,0.7886]
[1728221483766,3.0,2433.1,2433.0,0.84297048]
[1728221484278,6.28798,2433.1,2433.0,0.84297048]
[1728221484666,3.0,2433.1,2433.0,0.84297048]
[1728221487177,3.0,2433.1,2433.0,35.84297048]
[1728221487377,6.28798,2433.1,2433.0,35.84297048]
[1728221495324,6.28798,2433.1,2433.0,35.05437048]
[1728221495473,6.59158,2433.1,2433.0,35.05437048]
[1728221495816,55.387992,2433.1,2433.0,0.05437048]
[1728221495978,51.158852,2433.1,2432.2,0.7886]
[1728221496176,3.28892,2432.5,2432.2,0.7886]
[1728221496481,3.28892,2432.5,2432.3,0.05069703]
[1728221496799,3.28892,2432.5,2432.4,35.0]
[1728221496800,3.0,2432.5,2432.4,35.0]
[1728221497299,3.0,2432.5,2432.4,35.05051565]
[1728221497880,3.0,2432.5,2432.4,38.63442722]
[1728221499316,6.28879,2432.5,2432.4,38.63442722]
[1728221504710,3.0,2432.5,2432.4,38.63442722]
[1728221504882,3.0,2432.5,2432.4,39.38652722]
[1728221505983,6.28879,2432.5,2432.4,39.38652722]
[1728221523798,6.28879,2432.5,2432.4,35.05051565]
[1728221553479,7.86791597,2432.5,2432.4,35.05051565]
[1728221553775,7.86791597,2432.5,2432.4,35.0]
[1728221554060,7.86791597,2432.5,2432.4,35.05051565]
[1728221558878,6.28879,2432.5,2432.4,35.05051565]
[1728221560938,6.28879,2432.5,2432.4,35.83841565]
[1728221565069,6.28879,2432.5,2432.4,35.05051565]
[1728221571266,6.28879,2432.5,2432.4,37.1596008]
[1728221572264,3.0,2432.5,2432.4,37.9737008]
[1728221573769,6.28879,2432.5,2432.4,37.9737008]
[1728221578901,3.0,2432.5,2432.4,37.9737008]
[1728221581499,6.28879,2432.5,2432.4,37.9737008]
[1728221584222,3.28853,2432.7,2432.5,0.767]
[1728221584429,3.28853,2432.7,2432.6,4.55966008]
[1728221584430,6.28853,2432.7,2432.6,4.55966008]
[1728221584716,6.28853,2432.7,2432.6,4.60981303]
[1728221584936,6.28853,2432.7,2432.6,0.81715295]
[1728221585230,6.28853,2432.7,2432.6,35.81715295]
[1728221589535,3.28827,2432.9,2432.6,35.81715295]
[1728221589738,3.2882,2433.0,2432.7,0.7841]
[1728221589952,3.28799,2433.1,2432.8,0.7841]
[1728221590300,3.28799,2433.1,2432.8,0.8338903]
[1728221591166,3.28799,2433.1,2432.9,35.0]
[1728221591332,3.28799,2433.1,2433.0,4.28907903]
[1728221591800,3.28799,2433.1,2433.0,0.84451165]
[1728221592002,3.28799,2433.1,2433.0,35.84451165]
[1728221592435,3.28794,2433.2,2433.0,35.84451165]
[1728221592941,6.57587,2433.2,2433.0,35.84451165]
[1728221593141,3.28793,2433.2,2433.0,35.84451165]
[1728221593440,3.28793,2433.2,2433.0,39.42896282]
[1728221593650,6.57589,2433.2,2433.0,39.42896282]
[1728221593814,3.28793,2433.2,2433.0,39.42896282]
[1728221594016,3.28798,2433.1,2433.0,39.42896282]
[1728221595925,11.36038878,2434.0,2433.0,39.42896282]
[1728221595926,3.287,2433.9,2433.4,3.28756]
[1728221596128,3.93039878,2434.0,2433.5,0.86626729]
[1728221596341,3.93039878,2434.0,2433.5,0.7841]
[1728221596342,6.57371,2434.0,2433.5,0.7841]
[1728221596515,4.86596597,2434.0,2433.5,0.7841]
[1728221596714,5.16928597,2434.2,2433.6,35.0]
[1728221596913,3.28672,2434.1,2433.8,0.7841]
[1728221597432,3.0,2434.0,2433.8,0.7841]
[1728221597757,6.28682,2434.0,2433.9,35.0]
[1728221598117,3.0,2434.0,2433.9,35.0]
[1728221599352,3.0,2434.0,2433.9,36.74462269]
[1728221602269,3.28672,2434.1,2433.9,36.74462269]
[1728221605048,6.57347,2434.1,2433.9,36.74462269]
[1728221605972,4.86589597,2434.0,2433.9,36.74462269]
[1728221608271,8.16949597,2434.0,2433.9,35.0]
[1728221615686,69.55650097,2434.0,2433.9,35.0]
[1728221615844,64.70775397,2434.0,2433.9,35.0]
[1728221616051,62.54852697,2434.0,2433.9,35.0]
[1728221616464,56.20313097,2434.0,2433.9,35.0]
[1728221616779,55.95528497,2434.0,2433.9,35.0]
[1728221616974,53.68146197,2434.0,2433.9,35.0]
[1728221621299,46.36000897,2434.0,2433.9,35.0]
[1728221623626,3.28785,2433.2,2433.1,0.8139]
[1728221623773,3.28785,2433.2,2433.1,0.87409009]
[1728221624220,3.28785,2433.2,2433.1,35.87409009]
[1728221625827,3.28785,2433.2,2433.1,39.4614991]
[1728221635597,6.57552,2433.3,2433.1,39.4614991]
[1728221635798,3.28773,2433.3,2433.1,39.4614991]
[1728221635993,6.57553,2433.3,2433.1,39.4614991]
[1728221637257,3.28785,2433.2,2433.1,39.4614991]
[1728221638522,3.28785,2433.2,2433.1,38.6475991]
[1728221639268,4.86697597,2433.2,2433.1,38.6475991]
[1728221647836,3.28785,2433.2,2433.1,38.6475991]
[1728221652402,3.28785,2433.2,2433.1,39.4046991]
[1728221653211,3.0,2433.5,2433.1,38.6475991]
[1728221653212,3.28758,2433.4,2433.1,38.6475991]
[1728221653432,3.0,2433.3,2433.2,4.62185991]
[1728221653616,3.0,2433.3,2433.2,4.68932454]
[1728221653925,3.0,2433.4,2433.3,0.7571]
[1728221657517,3.0,2433.4,2433.3,35.7571]
[1728221657710,3.0,2433.4,2433.3,39.33281]
[1728221660221,3.28726,2433.7,2433.4,0.7901]
[1728221660532,3.28726,2433.7,2433.6,0.7901]
[1728221662027,3.28726,2433.7,2433.6,35.7901]
[1728221662258,3.28726,2433.7,2433.6,39.37731239]
[1728221666334,6.57398,2433.9,2433.6,39.37731239]
[1728221666542,6.57398,2433.9,2433.7,0.02769037]
[1728221666721,3.28698,2433.9,2433.7,0.02769037]
[1728221667261,6.57397,2433.9,2433.7,0.08184081]
[1728221667467,6.57397,2433.9,2433.7,4.02775613]
[1728221668634,3.28698,2433.9,2433.7,4.02775613]
[1728221668862,3.28698,2433.9,2433.8,0.7901]
[1728221669738,6.28643,2434.3,2433.8,0.7901]
[1728221669942,6.28643,2434.3,2433.4,1.57912597]
[1728221669943,6.28643,2434.3,2434.0,0.7901]
[1728221670649,3.28613,2434.5,2434.0,0.7901]
[1728221670843,3.28599,2434.6,2434.2,0.7901]
[1728221671727,3.0,2434.5,2434.3,35.0]
[1728221672621,3.0,2434.5,2434.4,0.7901]
[1728221672819,3.0,2434.6,2434.4,4.36911]
[1728221673072,3.0,2434.6,2434.4,0.7901]
[1728221673363,3.0,2434.6,2434.5,35.0]
[1728221675141,3.0,2434.8,2434.5,35.0]
[1728221675471,6.28577,2434.8,2434.6,0.7901]
[1728221675633,6.28577,2434.8,2434.7,0.44634389]
[1728221675960,6.28577,2434.8,2434.6,0.7901]
[1728221676172,6.28569,2434.8,2434.7,35.0]
[1728221690000,3.28516,2435.2,2434.8,0.7551]
[1728221690282,3.28518,2435.2,2434.8,0.7551]
[1728221690477,3.2853,2435.1,2434.8,0.7551]
[1728221690717,3.2853,2435.1,2435.0,35.0]
[1728221691092,4.86442597,2435.1,2435.0,35.0]
[1728221691296,4.86442597,2435.1,2435.0,38.57551]
[1728221692028,4.86440597,2435.1,2435.0,35.0]
[1728221697925,8.16800597,2435.1,2435.0,35.0]